bitfinex/quotes_BTCUSD_20241014
["timestamp","ask_amount","ask_price","bid_price","bid_amount"]
[1728886693735,0.001644,63965.0,63964.0,3.23907014]
[1728886694249,0.001644,63965.0,63964.0,2.88590334]
[1728886694472,0.23387254,63970.0,63969.0,0.156325]
[1728886694473,0.21955075,63970.0,63969.0,0.156325]
[1728886694697,0.21955075,63970.0,63969.0,0.90512256]
[1728886694932,0.0919,63976.0,63969.0,0.76763389]
[1728886695149,0.0919,63976.0,63970.0,0.17602262]
[1728886695390,0.0919,63976.0,63974.0,0.09628494]
[1728886695612,0.091,63978.0,63975.0,0.17602262]
[1728886695838,0.091,63978.0,63976.0,0.01479861]
[1728886696070,0.091,63978.0,63977.0,0.17602262]
[1728886696292,0.091,63978.0,63977.0,0.27228656]
[1728886696515,0.001644,63983.0,63977.0,0.29107956]
[1728886696516,0.0993,63982.0,63977.0,0.29107956]
[1728886696752,0.0993,63982.0,63978.0,0.01477761]
[1728886696975,0.0993,63982.0,63977.0,0.27630195]
[1728886696976,0.0993,63982.0,63979.0,0.65241162]
[1728886697197,0.0993,63982.0,63980.0,0.01477761]
[1728886697417,0.0993,63982.0,63981.0,0.17600162]
[1728886697634,0.0993,63982.0,63981.0,0.19477337]
[1728886697856,0.0993,63982.0,63981.0,0.19476515]
[1728886698320,0.001644,63983.0,63982.0,0.156293]
[1728886698542,0.001644,63983.0,63982.0,0.3322864]
[1728886698764,0.001644,63983.0,63982.0,0.82744284]
[1728886699464,0.001644,63983.0,63982.0,0.82844284]
[1728886699687,0.001644,63983.0,63982.0,0.84244284]
[1728886699908,0.001644,63983.0,63982.0,0.84144284]
[1728886700664,0.001644,63983.0,63982.0,0.85544284]
[1728886700887,0.001644,63983.0,63982.0,0.84144284]
[1728886701109,0.001644,63983.0,63982.0,0.82744284]
[1728886701330,0.001644,63983.0,63982.0,0.84244284]
[1728886701787,0.001644,63983.0,63982.0,0.84144284]
[1728886702249,0.001644,63983.0,63982.0,0.85644284]
[1728886702477,0.001644,63983.0,63982.0,0.84244284]
[1728886702692,0.001644,63983.0,63982.0,0.82844284]
[1728886702923,0.001644,63983.0,63982.0,0.84244284]
[1728886703840,0.00687,63989.0,63988.0,0.09628494]
[1728886704077,0.00687,63989.0,63988.0,0.27227834]
[1728886704295,0.00687,63989.0,63988.0,0.19471009]
[1728886704527,0.00687,63989.0,63988.0,0.19461009]
[1728886704758,0.339346,63989.0,63988.0,0.19461009]
[1728886705848,0.338346,63989.0,63988.0,0.19461009]
[1728886706277,0.338346,63989.0,63988.0,0.20861009]
[1728886706726,0.338346,63989.0,63988.0,0.19461009]
[1728886706979,0.338346,63989.0,63988.0,0.20861009]
[1728886707211,0.338346,63989.0,63988.0,0.19461009]
[1728886707450,0.338346,63989.0,63988.0,0.20861009]
[1728886707667,0.338346,63989.0,63988.0,0.22261009]
[1728886707894,0.338346,63989.0,63988.0,0.22257629]
[1728886708791,0.339346,63989.0,63988.0,0.22257629]
[1728886709460,0.338346,63989.0,63988.0,0.22257629]
[1728886711094,0.338346,63989.0,63988.0,0.22257528]
[1728886712193,0.18207,63989.0,63988.0,0.22257528]
[1728886712407,0.338346,63989.0,63988.0,0.22257528]
[1728886712613,0.18207,63989.0,63988.0,0.22257528]
[1728886712836,0.338346,63989.0,63988.0,0.22257528]
[1728886713315,0.10427,63989.0,63988.0,0.22257528]
[1728886714212,0.10427,63989.0,63988.0,0.06145127]
[1728886714448,0.341046,63989.0,63988.0,0.06145127]
[1728886714905,0.342046,63989.0,63988.0,0.06145127]
[1728886716038,0.341046,63989.0,63988.0,0.06145127]
[1728886716463,0.18477,63989.0,63988.0,0.06145127]
[1728886716679,0.341046,63989.0,63988.0,0.06145127]
[1728886716895,0.18477,63989.0,63988.0,0.06145127]
[1728886717332,0.10427,63989.0,63988.0,0.06145127]
[1728886717793,0.105091,63989.0,63988.0,0.2079407]
[1728886718021,0.105091,63989.0,63988.0,0.2226916]
[1728886721202,0.105091,63989.0,63988.0,0.1946916]
[1728886721637,0.105091,63989.0,63988.0,0.2086916]
[1728886721885,0.104391,63989.0,63988.0,0.2086916]
[1728886722599,0.104391,63989.0,63988.0,0.2226916]
[1728886722815,0.104391,63989.0,63988.0,0.1946916]
[1728886723034,0.104391,63989.0,63988.0,0.2086916]
[1728886723255,0.104391,63989.0,63988.0,0.2226916]
[1728886723911,0.104391,63989.0,63988.0,0.2086916]
[1728886724127,0.104391,63989.0,63988.0,0.2063986]
[1728886724344,0.104391,63989.0,63988.0,0.2203986]
[1728886724566,0.104391,63989.0,63988.0,0.2343986]
[1728886725009,0.104391,63989.0,63988.0,0.23752378]
[1728886725221,0.006991,63989.0,63988.0,0.23752378]
[1728886727444,0.006991,63989.0,63988.0,0.22352378]
[1728886727873,0.006991,63989.0,63988.0,0.23752378]
[1728886728302,0.006991,63989.0,63988.0,0.22352378]
[1728886728734,0.006991,63989.0,63988.0,0.23752378]
[1728886730125,0.006991,63989.0,63988.0,0.22377288]
[1728886730395,0.006991,63989.0,63988.0,0.23857666]
[1728886730844,0.006991,63989.0,63988.0,0.22621866]
[1728886731290,0.006991,63989.0,63988.0,0.24021866]
[1728886731982,0.006991,63989.0,63988.0,0.22621866]
[1728886732420,0.006991,63989.0,63988.0,0.39549766]
[1728886732644,0.006991,63989.0,63988.0,0.23609348]
[1728886732916,0.006991,63989.0,63988.0,0.39237248]
[1728886733355,0.076319,63992.0,63990.0,0.001]
[1728886733577,0.076319,63992.0,63991.0,0.76034973]
[1728886733796,0.076319,63992.0,63991.0,0.77734803]
[1728886734040,0.001642,63994.0,63991.0,0.7773412]
[1728886734290,0.0784,63998.0,63997.0,0.09628494]
[1728886734291,0.29981854,63998.0,63997.0,0.09628494]
[1728886734519,0.29981854,63998.0,63997.0,0.2840129]
[1728886734757,0.2222,63998.0,63997.0,0.2046944]
[1728886736121,0.2222,63998.0,63997.0,0.2176944]
[1728886736349,0.3209,63998.0,63997.0,0.04347039]
[1728886736566,0.3219,63998.0,63997.0,0.05247039]
[1728886736859,0.3209,63998.0,63997.0,0.05247039]
[1728886737057,0.3219,63998.0,63997.0,0.04347039]
[1728886737510,0.3219,63998.0,63997.0,0.05908603]
[1728886737729,0.3219,63998.0,63997.0,0.03258208]
[1728886737954,0.3209,63998.0,63997.0,0.06708017]
[1728886738187,0.3219,63998.0,63997.0,0.06708017]
[1728886738408,0.3219,63998.0,63997.0,0.07608017]
[1728886738623,0.3209,63998.0,63997.0,0.07608017]
[1728886741045,0.3209,63998.0,63997.0,0.06436902]
[1728886741270,0.3209,63998.0,63997.0,0.07607891]
[1728886741490,0.3209,63998.0,63997.0,0.07607904]
[1728886742188,0.3219,63998.0,63997.0,0.07607904]
[1728886742408,0.3209,63998.0,63997.0,0.07607904]
[1728886742619,0.321721,63998.0,63997.0,0.06807904]
[1728886743065,0.321721,63998.0,63997.0,0.05907904]
[1728886743307,0.321721,63998.0,63997.0,0.06807904]
[1728886743740,0.322721,63998.0,63997.0,0.06807904]
[1728886743960,0.321721,63998.0,63997.0,0.07607904]
[1728886744397,0.321721,63998.0,63997.0,0.06807904]
[1728886744735,0.321721,63998.0,63997.0,0.05907904]
[1728886744797,0.321721,63998.0,63997.0,0.07607904]
[1728886746066,0.321721,63998.0,63997.0,0.23730305]
[1728886747495,0.321721,63998.0,63997.0,0.22930305]
[1728886747649,0.321721,63998.0,63997.0,0.22830305]
[1728886747803,0.321721,63998.0,63997.0,0.22830265]
[1728886748007,0.321721,63998.0,63997.0,0.23730269]
[1728886748214,0.321721,63998.0,63997.0,0.22930269]
[1728886748421,0.321721,63998.0,63997.0,0.22830269]
[1728886748627,0.321721,63998.0,63997.0,0.23730269]
[1728886749251,0.321721,63998.0,63997.0,0.22930269]
[1728886749455,0.322721,63998.0,63997.0,0.06807868]
[1728886749709,0.322721,63998.0,63997.0,0.05907868]
[1728886750603,0.322721,63998.0,63997.0,0.06707868]
[1728886751025,0.322721,63998.0,63997.0,0.07607868]
[1728886751440,0.322721,63998.0,63997.0,0.06707868]
[1728886751659,0.165467,63998.0,63997.0,0.06807868]
[1728886751901,0.099521,63998.0,63997.0,0.39355969]
[1728886752137,0.099521,63998.0,63997.0,0.2373027]
[1728886753197,0.099521,63998.0,63997.0,0.2283027]
[1728886753668,0.099521,63998.0,63997.0,0.2203027]
[1728886753878,0.099521,63998.0,63997.0,0.23903476]
[1728886754094,0.099521,63998.0,63997.0,0.25203476]
[1728886754556,0.099521,63998.0,63997.0,0.25303476]
[1728886754772,0.099521,63998.0,63997.0,0.26603476]
[1728886755446,0.099521,63998.0,63997.0,0.26602995]
[1728886759896,0.099521,63998.0,63997.0,0.10480594]
[1728886759897,0.432875,63998.0,63997.0,0.10480594]
[1728886760112,0.433875,63998.0,63997.0,0.10480594]
[1728886760559,0.433875,63998.0,63997.0,0.0748395]
[1728886760777,0.456875,63998.0,63997.0,0.0738395]
[1728886761222,0.461875,63998.0,63997.0,0.0878395]
[1728886761445,0.461875,63998.0,63997.0,0.0748395]
[1728886761679,0.461875,63998.0,63997.0,0.0878395]
[1728886761910,0.461875,63998.0,63997.0,0.0738395]
[1728886762132,0.461875,63998.0,63997.0,0.0798395]
[1728886762565,0.461875,63998.0,63997.0,0.0738395]
[1728886763016,0.461875,63998.0,63997.0,0.0608395]
[1728886763236,0.461875,63998.0,63997.0,0.05311623]
[1728886763451,0.461875,63998.0,63997.0,0.0718565]
[1728886763668,0.461875,63998.0,63997.0,0.0658546]
[1728886763883,0.433875,63998.0,63997.0,0.0658546]
[1728886764101,0.332875,63998.0,63997.0,0.0708546]
[1728886764329,0.333875,63998.0,63997.0,0.0708546]
[1728886764545,0.333875,63998.0,63997.0,0.0608546]
[1728886764998,0.333875,63998.0,63997.0,0.0708546]
[1728886765233,0.333875,63998.0,63997.0,0.0658546]
[1728886765471,0.333875,63998.0,63997.0,0.0728546]
[1728886765911,0.333875,63998.0,63997.0,0.0658546]
[1728886766125,0.333875,63998.0,63997.0,0.0728546]
[1728886766793,0.333875,63998.0,63997.0,0.0678546]
[1728886767239,0.333875,63998.0,63997.0,0.0748546]
[1728886767664,0.333875,63998.0,63997.0,0.0678546]
[1728886767894,0.333875,63998.0,63997.0,0.0748546]
[1728886770531,0.333875,63998.0,63997.0,0.04440219]
[1728886770767,0.333875,63998.0,63997.0,0.07485155]
[1728886774512,0.333875,63998.0,63997.0,0.07485159]
[1728886774737,0.333875,63998.0,63997.0,0.0561135]
[1728886774945,0.333875,63998.0,63997.0,0.07485163]
[1728886777525,0.099521,63998.0,63997.0,0.07485163]
[1728886777759,0.000821,63998.0,63997.0,0.07485163]
[1728886777997,0.000821,63998.0,63997.0,0.06135667]
[1728886778230,0.000821,63998.0,63997.0,0.09180068]
[1728886778506,0.000821,63998.0,63997.0,0.24602398]
[1728886778718,0.000821,63998.0,63997.0,0.41016106]
[1728886778934,0.000821,63998.0,63997.0,0.40928098]
[1728886779136,0.000821,63998.0,63997.0,0.39528098]
[1728886779352,0.000821,63998.0,63997.0,0.41528098]
[1728886779560,0.000821,63998.0,63997.0,0.25902398]
[1728886779986,0.000821,63998.0,63997.0,0.25302398]
[1728886780220,0.000821,63998.0,63997.0,0.26702398]
[1728886780705,0.000821,63998.0,63997.0,0.23902398]
[1728886781233,0.000821,63998.0,63997.0,0.26702398]
[1728886781471,0.000821,63998.0,63997.0,0.25302398]
[1728886781698,0.000821,63998.0,63997.0,0.26702398]
[1728886781916,0.000821,63998.0,63997.0,0.42328098]
[1728886782376,0.000821,63998.0,63997.0,0.28102398]
[1728886782814,0.000821,63998.0,63997.0,0.26702398]
[1728886783252,0.000821,63998.0,63997.0,0.28102398]
[1728886783469,0.000821,63998.0,63997.0,0.11979997]
[1728886784143,0.000821,63998.0,63997.0,0.28102398]
[1728886785771,0.000821,63998.0,63997.0,0.26623811]
[1728886785983,0.000821,63998.0,63997.0,0.28100734]
[1728886785984,0.157075,63998.0,63997.0,0.28100734]
[1728886786207,0.157075,63998.0,63997.0,0.26361852]
[1728886786445,0.157075,63998.0,63997.0,0.29712842]
[1728886786673,0.157075,63998.0,63997.0,0.12888264]
[1728886787526,0.158075,63998.0,63997.0,0.12888264]
[1728886787984,0.249875,63998.0,63997.0,0.12888264]
[1728886788415,0.249875,63998.0,63997.0,0.1197863]
[1728886788875,0.249875,63998.0,63997.0,0.1057863]
[1728886789095,0.249875,63998.0,63997.0,0.0777863]
[1728886789312,0.249875,63998.0,63997.0,0.0957863]
[1728886789739,0.249875,63998.0,63997.0,0.0867863]
[1728886789949,0.249875,63998.0,63997.0,0.0937863]
[1728886790609,0.354075,63998.0,63997.0,0.0777863]
[1728886790821,0.354075,63998.0,63997.0,0.0857863]
[1728886791035,0.359075,63998.0,63997.0,0.0937863]
[1728886791724,0.359075,63998.0,63997.0,0.0857863]
[1728886792166,0.359075,63998.0,63997.0,0.0947863]
[1728886795741,0.336075,63998.0,63997.0,0.0947863]
[1728886795951,0.336075,63998.0,63997.0,0.09478898]
[1728886796593,0.331075,63998.0,63997.0,0.09478898]
[1728886796821,0.249875,63998.0,63997.0,0.09478898]
[1728886797472,0.249875,63998.0,63997.0,0.09479677]
[1728886797937,0.249875,63998.0,63997.0,0.08579722]
[1728886798160,0.249875,63998.0,63997.0,0.09679722]
[1728886798369,0.092621,63998.0,63997.0,0.08879722]
[1728886798577,0.092621,63998.0,63997.0,0.09679722]
[1728886798790,0.092621,63998.0,63997.0,0.25802123]
[1728886799010,0.000821,63998.0,63997.0,0.25002123]
[1728886799505,0.000821,63998.0,63997.0,0.26002123]
[1728886799939,0.000821,63998.0,63997.0,0.25002123]
[1728886800146,0.000821,63998.0,63997.0,0.26366523]
[1728886800362,0.000821,63998.0,63997.0,0.41992223]
[1728886800597,0.000821,63998.0,63997.0,0.26366523]
[1728886800833,0.000821,63998.0,63997.0,0.40892223]
[1728886801051,0.000821,63998.0,63997.0,0.43753103]
[1728886801490,0.000821,63998.0,63997.0,0.42192222]
[1728886801722,0.000821,63998.0,63997.0,0.26566522]
[1728886801973,0.000821,63998.0,63997.0,0.28127403]
[1728886802659,0.000821,63998.0,63997.0,0.26566522]
[1728886803087,0.096921,63998.0,63997.0,0.26566522]
[1728886803510,0.097921,63998.0,63997.0,0.26566522]
[1728886803726,0.096921,63998.0,63997.0,0.26566522]
[1728886804156,0.096921,63998.0,63997.0,0.25395583]
[1728886804376,0.000821,63998.0,63997.0,0.25395583]
[1728886804610,0.000821,63998.0,63997.0,0.26956692]
[1728886807923,0.000821,63998.0,63997.0,0.23522407]
[1728886808145,0.000821,63998.0,63997.0,0.26956702]
[1728886809971,0.000821,63998.0,63997.0,0.25395659]
[1728886812848,0.001821,63998.0,63997.0,0.25395659]
[1728886813069,0.158075,63998.0,63997.0,0.25395659]
[1728886813524,0.001821,63998.0,63997.0,0.25395659]
[1728886814856,0.158075,63998.0,63997.0,0.09273258]
[1728886815072,0.177921,63998.0,63997.0,0.09273258]
[1728886815288,0.334175,63998.0,63997.0,0.09273258]
[1728886815514,0.177921,63998.0,63997.0,0.09273258]
[1728886815749,0.334175,63998.0,63997.0,0.09273258]
[1728886815975,0.177921,63998.0,63997.0,0.05921467]
[1728886816229,0.177921,63998.0,63997.0,0.09273409]
[1728886816653,0.334175,63998.0,63997.0,0.09273409]
[1728886818601,0.334175,63998.0,63997.0,0.07400033]
[1728886819887,0.334175,63998.0,63997.0,0.07399817]
[1728886822994,0.334175,63998.0,63997.0,0.08348144]
[1728886824056,0.334175,63998.0,63997.0,0.07399817]
[1728886827523,0.334175,63998.0,63997.0,0.05921467]
[1728886827738,0.334175,63998.0,63997.0,0.07401061]
[1728886828410,0.334175,63998.0,63997.0,0.08349851]
[1728886828810,0.334175,63998.0,63997.0,0.07401061]
[1728886829518,0.334175,63998.0,63997.0,0.06201061]
[1728886829967,0.334175,63998.0,63997.0,0.07301061]
[1728886830188,0.34487242,63998.0,63997.0,0.07301061]
[1728886830455,0.334175,63998.0,63997.0,0.06201061]
[1728886830665,0.334175,63998.0,63997.0,0.07101061]
[1728886830878,0.334175,63998.0,63997.0,0.05801061]
[1728886831311,0.334175,63998.0,63997.0,0.06801061]
[1728886831522,0.334175,63998.0,63997.0,0.05801061]
[1728886831961,0.334175,63998.0,63997.0,0.06801061]
[1728886843623,0.334175,63998.0,63997.0,0.05321467]
[1728886843833,0.334175,63998.0,63997.0,0.06800033]
[1728886844047,0.334175,63998.0,63997.0,0.05321467]
[1728886844261,0.334175,63998.0,63997.0,0.06800013]
[1728886847599,0.334175,63998.0,63997.0,0.05321467]
[1728886847807,0.334175,63998.0,63997.0,0.05104767]
[1728886849560,0.339175,63998.0,63997.0,0.05104767]
[1728886853492,0.339175,63998.0,63997.0,0.06740174]
[1728886853714,0.334175,63998.0,63997.0,0.06740174]
[1728886856266,0.334175,63998.0,63997.0,0.06740637]
[1728886861849,0.334175,63998.0,63997.0,0.06740465]
[1728886864163,0.334175,63998.0,63997.0,0.07911772]
[1728886865272,0.334175,63998.0,63997.0,0.08860233]
[1728886865492,0.362175,63998.0,63997.0,0.07911772]
[1728886865713,0.462175,63998.0,63997.0,0.05261371]
[1728886865934,0.53251938,63998.0,63997.0,0.06276551]
[1728886866176,0.462175,63998.0,63997.0,0.06276551]
[1728886866390,0.8927459,63998.0,63997.0,0.05105048]
[1728886866596,0.98659071,63998.0,63997.0,0.06276628]
[1728886866809,0.98657109,63998.0,63997.0,0.06276628]
[1728886867233,0.98657109,63998.0,63997.0,0.05105048]
[1728886868504,0.8927459,63998.0,63997.0,0.05105048]
[1728886869005,0.8927459,63998.0,63997.0,0.04194801]
[1728886869006,0.98657109,63998.0,63997.0,0.04194801]
[1728886869436,0.79660518,63998.0,63997.0,0.02633237]
[1728886869652,0.89038929,63998.0,63997.0,0.02633237]
[1728886869871,0.79660518,63998.0,63997.0,0.02633237]
[1728886870310,0.79660518,63998.0,63997.0,0.01633237]
[1728886870518,0.89037681,63998.0,63997.0,0.00733237]
[1728886870728,0.89037681,63998.0,63997.0,0.00833237]
[1728886870934,0.98651753,63998.0,63997.0,0.00833237]
[1728886871141,0.8927459,63998.0,63997.0,0.00833237]
[1728886871343,0.8927459,63998.0,63997.0,0.00733237]
[1728886871551,0.98850653,63998.0,63997.0,0.00733237]
[1728886872407,0.89236581,63998.0,63997.0,0.00733237]
[1728886872617,0.98850653,63998.0,63997.0,0.00733237]
[1728886873483,0.98850653,63998.0,63997.0,0.00732583]
[1728886875621,0.98827923,63998.0,63997.0,0.00732583]
[1728886876323,0.98827923,63998.0,63997.0,0.001644]
[1728886878255,0.89213851,63998.0,63997.0,0.001644]
[1728886878484,0.89713851,63998.0,63997.0,0.001644]
[1728886878700,0.80340438,63998.0,63997.0,0.001644]
[1728886879124,0.92057204,63998.0,63997.0,0.001644]
[1728886879330,0.80340438,63998.0,63997.0,0.001644]
[1728886879535,0.80340438,63998.0,63997.0,0.02081605]
[1728886879743,0.8995451,63998.0,63997.0,0.02081605]
[1728886882147,0.9015451,63998.0,63997.0,0.02081605]
[1728886882569,0.9015451,63998.0,63997.0,0.001644]
[1728886883234,0.9015451,63998.0,63996.0,0.031602]
[1728886883235,0.466257,63997.0,63996.0,1e-06]
[1728886883444,0.80048638,63997.0,63996.0,1e-06]
[1728886884822,0.80048638,63997.0,63996.0,0.001001]
[1728886885054,0.80029849,63997.0,63996.0,0.001001]
[1728886885515,0.79829849,63997.0,63996.0,0.001001]
[1728886885976,0.89443921,63997.0,63996.0,0.001001]
[1728886886191,0.89443921,63997.0,63996.0,0.00052255]
[1728886886878,0.89643921,63997.0,63996.0,0.00052255]
[1728886887310,0.90343921,63997.0,63996.0,0.00152255]
[1728886888288,0.90343921,63997.0,63996.0,5.5e-07]
[1728886889292,0.80729849,63997.0,63996.0,5.5e-07]
[1728886890236,0.267276,63989.0,63988.0,0.001642]
[1728886890509,0.86522024,63989.0,63988.0,0.001642]
[1728886890782,0.86346324,63989.0,63988.0,0.001642]
[1728886892024,0.81867058,63989.0,63988.0,0.001642]
[1728886892039,0.81867058,63989.0,63988.0,1e-06]
[1728886892040,0.89085957,63989.0,63988.0,1e-06]
[1728886892264,0.99337287,63989.0,63988.0,1e-06]
[1728886892487,1.11235452,63989.0,63988.0,1e-06]
[1728886893142,0.99537287,63989.0,63988.0,1e-06]
[1728886893821,0.55233085,63979.0,63978.0,0.23387254]
[1728886894059,0.71355486,63979.0,63978.0,0.23387254]
[1728886894564,0.28489213,63978.0,63977.0,0.01546289]
[1728886894801,0.44746227,63978.0,63977.0,0.01546289]
[1728886895036,0.44611614,63978.0,63977.0,0.01546289]
[1728886895897,0.44711614,63978.0,63977.0,0.02446289]
[1728886896315,0.44811614,63978.0,63977.0,0.03346289]
[1728886896737,0.54425686,63978.0,63977.0,0.03346289]
[1728886897191,0.28689213,63978.0,63977.0,0.03346289]
[1728886897396,0.28823826,63978.0,63977.0,0.03346289]
[1728886898345,1.51380031,63978.0,63977.0,0.03346289]
[1728886898568,1.51245418,63978.0,63977.0,0.03346289]
[1728886899217,1.48486505,63978.0,63977.0,0.21488182]
[1728886899430,1.48945418,63978.0,63977.0,0.12782764]
[1728886902312,1.48486505,63978.0,63977.0,0.12947164]
[1728886903160,1.48945418,63978.0,63977.0,0.04987164]
[1728886904119,0.26389213,63978.0,63977.0,0.04987164]
[1728886904348,0.26523826,63978.0,63977.0,0.04987164]
[1728886907327,0.26523826,63978.0,63977.0,0.03510689]
[1728886907545,0.26523826,63978.0,63977.0,0.04988418]
[1728886908023,0.26523826,63978.0,63977.0,0.0498867]
[1728886910468,0.28823826,63978.0,63977.0,0.0498867]
[1728886914683,0.28689213,63978.0,63977.0,0.0498867]
[1728886916625,0.26389213,63978.0,63977.0,0.0498867]
[1728886921489,0.26523826,63978.0,63977.0,0.0498867]
[1728886921739,0.26523826,63978.0,63977.0,0.03510689]
[1728886921971,0.26389213,63978.0,63977.0,0.04989162]
[1728886924842,0.26289213,63978.0,63977.0,0.04989162]
[1728886925101,0.26289213,63978.0,63977.0,0.0498964]
[1728886926755,0.26389213,63978.0,63977.0,0.0498964]
[1728886927524,0.259303,63978.0,63977.0,0.0498964]
[1728886928543,0.26389213,63978.0,63977.0,0.0498964]
[1728886928772,0.26389213,63978.0,63977.0,0.04991141]
[1728886929184,0.26289213,63978.0,63977.0,0.04991141]
[1728886929599,0.26389213,63978.0,63977.0,0.04991141]
[1728886930363,0.16389213,63978.0,63977.0,0.05940473]
[1728886930580,0.16289213,63978.0,63977.0,0.05940473]
[1728886930782,0.16423826,63978.0,63977.0,0.05940473]
[1728886931179,0.16289213,63978.0,63977.0,0.05940473]
[1728886931392,0.16423826,63978.0,63977.0,0.05940473]
[1728886931620,0.16289213,63978.0,63977.0,0.05940473]
[1728886932359,0.16289213,63978.0,63977.0,0.07113177]
[1728886932535,0.16289213,63978.0,63977.0,0.05940473]
[1728886933524,0.16423826,63978.0,63977.0,0.04991141]
[1728886933931,0.16523826,63978.0,63977.0,0.04991141]
[1728886934338,0.16423826,63978.0,63977.0,0.04991141]
[1728886934595,0.158303,63978.0,63977.0,0.04991141]
[1728886937340,0.002,63978.0,63977.0,0.04991141]
[1728886937557,0.158303,63978.0,63977.0,0.05940473]
[1728886937722,0.158303,63978.0,63977.0,0.07877055]
[1728886938644,0.158303,63978.0,63977.0,0.08066841]
[1728886939062,0.002,63978.0,63977.0,0.08066841]
[1728886939290,0.002,63978.0,63977.0,0.06130259]
[1728886939513,0.002,63978.0,63977.0,0.08066953]
[1728886939746,0.002,63978.0,63977.0,0.3788326]
[1728886939977,1.31935821,63987.0,63977.0,0.3788326]
[1728886939978,1.22556205,63987.0,63983.0,0.09614072]
[1728886940212,0.23387254,63985.0,63984.0,0.25102673]
[1728886940465,0.000822,63988.0,63984.0,0.28174323]
[1728886940731,0.000822,63988.0,63987.0,0.09614072]
[1728886940975,0.000822,63988.0,63987.0,0.12233201]
[1728886941222,0.000822,63988.0,63987.0,0.14163843]
[1728886942173,0.000822,63988.0,63987.0,0.04549771]
[1728886942883,0.157101,63988.0,63987.0,0.04549771]
[1728886943107,0.157101,63988.0,63987.0,0.06749771]
[1728886943335,0.157101,63988.0,63987.0,0.04819129]
[1728886943562,0.157101,63988.0,63987.0,0.06749771]
[1728886943798,0.000822,63988.0,63987.0,0.04130642]
[1728886944066,0.000822,63988.0,63987.0,0.06742568]
[1728886944303,0.157101,63988.0,63987.0,0.06742568]
[1728886945036,0.000822,63988.0,63987.0,0.06742568]
[1728886945504,0.157101,63988.0,63987.0,0.04811926]
[1728886945725,0.000822,63988.0,63987.0,0.06742568]
[1728886946670,0.000822,63988.0,63987.0,0.38493069]
[1728886946918,0.313338,63997.0,63993.0,0.09614072]
[1728886947175,0.156263,63995.0,63994.0,0.02611926]
[1728886947676,0.156264,63994.0,63993.0,0.09614072]
[1728886947889,0.001,63996.0,63993.0,0.12223132]
[1728886948118,0.156262,63995.0,63994.0,0.0260906]
[1728886948315,0.156262,63995.0,63994.0,0.0453592]
[1728886948569,0.156262,63995.0,63994.0,0.0260906]
[1728886948773,0.157079,63997.0,63994.0,0.0260906]
[1728886948981,0.000822,63997.0,63996.0,0.09614072]
[1728886949186,0.000821,63998.0,63996.0,0.28345533]
[1728886949402,0.000821,63998.0,63997.0,0.18731461]
[1728886949629,0.000821,63998.0,63997.0,0.20656701]
[1728886950496,0.000821,63998.0,63997.0,0.22701028]
[1728886951721,0.000821,63998.0,63997.0,0.21601028]
[1728886952201,0.000821,63998.0,63997.0,0.24301028]
[1728886952419,0.000821,63998.0,63997.0,0.23356701]
[1728886952628,0.000821,63998.0,63997.0,0.21956701]
[1728886953279,0.000821,63998.0,63997.0,0.23356701]
[1728886954362,0.157075,63998.0,63997.0,0.23356701]
[1728886954583,0.157075,63998.0,63997.0,0.06099821]
[1728886954808,0.157075,63998.0,63997.0,0.04174581]
[1728886955021,0.157075,63998.0,63997.0,0.03890024]
[1728886955229,0.157075,63998.0,63997.0,0.12485311]
[1728886955436,0.157075,63998.0,63997.0,0.13885311]
[1728886955651,0.157075,63998.0,63997.0,0.12485311]
[1728886955858,0.157075,63998.0,63997.0,0.11085311]
[1728886956084,0.157075,63998.0,63997.0,0.12485311]
[1728886956296,0.157075,63998.0,63997.0,0.04171239]
[1728886956502,0.158075,63998.0,63997.0,0.06094158]
[1728886956708,0.158075,63998.0,63997.0,0.03394158]
[1728886957129,0.158075,63998.0,63997.0,0.02571239]
[1728886957330,0.158075,63998.0,63997.0,0.01471239]
[1728886957743,0.158075,63998.0,63997.0,0.02871239]
[1728886958222,0.158075,63998.0,63997.0,0.03871239]
[1728886958431,0.000821,63998.0,63997.0,0.02871239]
[1728886958683,0.157075,63998.0,63997.0,0.02871239]
[1728886958889,0.157075,63998.0,63997.0,0.06094158]
[1728886959750,0.000821,63998.0,63997.0,0.06094158]
[1728886961017,0.000821,63998.0,63997.0,0.1570823]
[1728886961464,0.000821,63998.0,63997.0,0.06094158]
[1728886962651,0.000821,63998.0,63997.0,0.04622919]
[1728886962879,0.000821,63998.0,63997.0,0.06094217]
[1728886963327,0.157075,63998.0,63997.0,0.06094217]
[1728886964368,0.000821,63998.0,63997.0,0.06094217]
[1728886964990,0.000821,63998.0,63997.0,0.22216618]
[1728886965602,0.000821,63998.0,63997.0,0.37842318]
[1728886965807,0.000821,63998.0,63997.0,0.22216618]
[1728886966427,0.000821,63998.0,63997.0,0.2074532]
[1728886966633,0.000821,63998.0,63997.0,0.22217867]
[1728886966842,0.000821,63998.0,63997.0,0.22217912]
[1728886967054,0.000821,63998.0,63997.0,0.20817912]
[1728886967233,0.000821,63998.0,63997.0,0.22217912]
[1728886967683,0.000821,63998.0,63997.0,0.20917912]
[1728886968133,0.000821,63998.0,63997.0,0.22217912]
[1728886968538,4e-05,64000.0,63997.0,0.20462204]
[1728886968712,4e-05,64000.0,63998.0,0.17594993]
[1728886968958,4e-05,64000.0,63999.0,0.01472592]
[1728886969163,4e-05,64000.0,63999.0,0.19514638]
[1728886969363,4e-05,64000.0,63999.0,0.2045893]
[1728886970183,4e-05,64000.0,63999.0,0.18042046]
[1728886970393,4e-05,64000.0,63999.0,0.20462531]
[1728886970960,4e-05,64000.0,63999.0,0.30076603]
[1728886971167,4e-05,64000.0,63999.0,0.45956104]
[1728886971340,4e-05,64000.0,63999.0,0.30330904]
[1728886971735,4e-05,64000.0,63999.0,0.31630904]
[1728886971935,4e-05,64000.0,63999.0,0.30430904]
[1728886972140,0.000861,64000.0,63999.0,0.30530904]
[1728886972344,0.000861,64000.0,63999.0,0.31930904]
[1728886972743,0.000861,64000.0,63999.0,0.30265608]
[1728886973144,0.000861,64000.0,63999.0,0.31665608]
[1728886973711,0.000861,64000.0,63999.0,0.30530904]
[1728886974141,0.000861,64000.0,63999.0,0.31930972]
[1728886975603,0.000861,64000.0,63999.0,0.223169]
[1728886975814,0.000861,64000.0,63999.0,0.209169]
[1728886976025,0.000861,64000.0,63999.0,0.195169]
[1728886976231,0.000861,64000.0,63999.0,0.209169]